fUSD/lending_fUSD_20240519
["ID","MTS","AMOUNT","RATE_DAILY","PERIOD"]
[327470301,1716096660289,-500.0,0.00027671,2]
[327470302,1716096660299,-500.0,0.00027671,2]
[327470303,1716096660308,-507.25411457,0.00027671,2]
[327470304,1716096660317,-500.0,0.00027671,2]
[327470305,1716096660329,-500.0,0.00027671,2]
[327470306,1716096660340,-500.0,0.00027671,2]
[327470307,1716096660349,-500.0,0.00027671,2]
[327470308,1716096660359,-563.44,0.00027671,2]
[327470309,1716096660368,-257.40564262,0.00027671,2]
[327470310,1716096660377,-2834.4,0.00027671,2]
[327470311,1716096660388,-235.24575201,0.00027671,2]
[327470312,1716096660398,-516.3,0.00027671,2]
[327470313,1716096660408,-500.0,0.00027671,2]
[327470314,1716096660419,-150.07102017,0.00027671,2]
[327470315,1716096660428,-500.0,0.00027671,2]
[327470316,1716096660437,-500.0,0.00027671,2]
[327470317,1716096660446,-500.0,0.00027671,2]
[327470318,1716096660456,-945.42,0.00027671,2]
[327470319,1716096660466,-500.0,0.00027671,2]
[327470320,1716096660475,-500.0,0.00027671,2]
[327470321,1716096660484,-500.0,0.00027671,2]
[327470322,1716096660494,-500.0,0.00027671,2]
[327470323,1716096660504,-500.0,0.00027671,2]
[327470324,1716096660513,-594.7,0.00027671,2]
[327470325,1716096660523,-506.74920206,0.00027671,2]
[327470326,1716096660533,-500.0,0.00027671,2]
[327470327,1716096660542,-500.0,0.00027671,2]
[327470328,1716096660551,-505.36916217,0.00027671,2]
[327470329,1716096660562,-500.0,0.00027671,2]
[327470330,1716096660571,-500.0,0.00027671,2]
[327470331,1716096660580,-500.0,0.00027671,2]
[327470332,1716096660590,-435.75876087,0.00027671,2]
[327470333,1716096660600,-500.0,0.00027671,2]
[327470334,1716096660609,-348.62594137,0.00027671,2]
[327470335,1716096660619,-507.45,0.00027671,2]
[327470336,1716096660629,-500.0,0.00027671,2]
[327470337,1716096660639,-968.12,0.00027671,2]
[327470338,1716096660649,-500.0,0.00027671,2]
[327470339,1716096660658,-523.77,0.00027671,2]
[327470340,1716096660668,-500.0,0.00027671,2]
[327470341,1716096660678,-231.562462,0.00027671,2]
[327470342,1716096660688,-500.0,0.00027671,2]
[327470343,1716096660697,-500.0,0.00027671,2]
[327470344,1716096660707,-633.71,0.00027671,2]
[327470345,1716096660717,-1119.77,0.00027671,2]
[327470346,1716096660727,-592.83930615,0.00027671,2]
[327470347,1716096660737,-500.0,0.00027671,2]
[327470348,1716096660747,-500.0,0.00027671,2]
[327470349,1716096660757,-337.25703287,0.00027671,2]
[327470350,1716096660766,-807.6,0.00027671,2]
[327470351,1716096660775,-500.0,0.00027671,2]
[327470352,1716096660784,-3116.02,0.00027671,2]
[327470353,1716096660794,-500.0,0.00027671,2]
[327470354,1716096660803,-500.0,0.00027671,2]
[327470355,1716096660812,-500.0,0.00027671,2]
[327470356,1716096660821,-352.97611991,0.00027671,2]
[327470357,1716096660830,-171.47428532,0.00027671,2]
[327470358,1716096660839,-500.0,0.00027671,2]
[327470359,1716096660848,-500.0,0.00027671,2]
[327470360,1716096660857,-500.0,0.00027671,2]
[327470361,1716096660866,-500.0,0.00027671,2]
[327470362,1716096660875,-579.87798952,0.00027671,2]
[327470363,1716096660885,-1499.66,0.00027671,2]
[327470364,1716096660894,-2556.3,0.00027671,2]
[327470365,1716096660903,-500.0,0.00027671,2]
[327470366,1716096660912,-500.0,0.00027671,2]
[327470367,1716096660921,-192.7448896,0.00027671,2]
[327470368,1716096660930,-570.21,0.00027671,2]
[327470369,1716096660939,-500.0,0.00027671,2]
[327470370,1716096660948,-500.0,0.00027671,2]
[327470371,1716096660957,-603.74,0.00027671,2]
[327470372,1716096660966,-431.63281644,0.00027671,2]
[327470373,1716096660975,-500.0,0.00027671,2]
[327470374,1716096660984,-500.0,0.00027671,2]
[327470375,1716096660993,-150.59645999,0.00027671,2]
[327470376,1716096661003,-500.0,0.00027671,2]
[327470377,1716096661012,-500.0,0.00027671,2]
[327470378,1716096661021,-869.48,0.00027671,2]
[327470379,1716096661032,-5450.27,0.00027671,2]
[327470380,1716096661042,-500.0,0.00027671,2]
[327470381,1716096661051,-794.27,0.00027671,2]
[327470382,1716096661061,-571.47,0.00027671,2]
[327470383,1716096661070,-2212.38,0.00027671,2]
[327470384,1716096661080,-500.0,0.00027671,2]
[327470385,1716096661090,-829.89,0.00027671,2]
[327470386,1716096661099,-500.0,0.00027671,2]
[327470387,1716096661109,-1554.49,0.00027671,2]
[327470388,1716096661118,-1000.53,0.00027671,2]
[327470389,1716096661128,-368.84423302,0.00027671,2]
[327470390,1716096661137,-500.0,0.00027671,2]
[327470391,1716096661147,-500.0,0.00027671,2]
[327470392,1716096661156,-3312.55,0.00027671,2]
[327470393,1716096661166,-560.85,0.00027671,2]
[327470394,1716096661175,-500.0,0.00027671,2]
[327470395,1716096661185,-500.0,0.00027671,2]
[327470396,1716096661195,-500.0,0.00027671,2]
[327470397,1716096661204,-532.40451582,0.00027671,2]
[327470398,1716096661214,-500.0,0.00027671,2]
[327470399,1716096661223,-409.94980855,0.00027671,2]
[327470400,1716096661233,-796.27,0.00027671,2]
[327470401,1716096661243,-512.34,0.00027671,2]
[327470402,1716096661255,-209.67968561,0.00027671,2]
[327470403,1716096661264,-529.41944478,0.00027671,2]
[327470404,1716096661273,-539.07595552,0.00027671,2]
[327470405,1716096661283,-714.47,0.00027671,2]
[327470406,1716096661293,-500.0,0.00027671,2]
[327470407,1716096661302,-500.0,0.00027671,2]
[327470408,1716096661312,-500.0,0.00027671,2]
[327470409,1716096661323,-500.0,0.00027671,2]
[327470410,1716096661332,-692.36,0.00027671,2]
[327470411,1716096661341,-500.0,0.00027671,2]
[327470412,1716096661350,-500.0,0.00027671,2]
[327470413,1716096661359,-593.64,0.00027671,2]
[327470414,1716096661368,-500.0,0.00027671,2]
[327470415,1716096661377,-517.28554548,0.00027671,2]
[327470416,1716096661386,-1321.47,0.00027671,2]
[327470417,1716096661395,-569.2,0.00027671,2]
[327470418,1716096661404,-500.0,0.00027671,2]
[327470419,1716096661414,-608.9,0.00027671,2]
[327470420,1716096661423,-557.72418003,0.00027671,2]
[327470421,1716096661432,-710.42,0.00027671,2]
[327470422,1716096661442,-1061.35,0.00027671,2]
[327470423,1716096661451,-978.79,0.00027671,2]
[327470424,1716096661461,-647.83,0.00027671,2]
[327470425,1716096661470,-584.37463088,0.00027671,2]
[327470426,1716096661478,-500.0,0.00027671,2]
[327470427,1716096661487,-500.0,0.00027671,2]
[327470428,1716096661498,-500.0,0.00027671,2]
[327470429,1716096661507,-950.0,0.00027671,2]
[327470430,1716096661516,-535.28,0.00027671,2]
[327470431,1716096661527,-375.03447338,0.00027671,2]
[327470432,1716096661536,-500.71,0.00027671,2]
[327470433,1716096661546,-785.4,0.00027671,2]
[327470434,1716096661555,-500.0,0.00027671,2]
[327470435,1716096661564,-500.0,0.00027671,2]
[327470436,1716096661574,-540.76185665,0.00027671,2]
[327470437,1716096661584,-500.0,0.00027671,2]
[327470438,1716096661593,-528.0456779,0.00027671,2]
[327470439,1716096661602,-500.0,0.00027671,2]
[327470440,1716096661611,-702.75,0.00027671,2]
[327470441,1716096661620,-500.0,0.00027671,2]
[327470442,1716096661629,-722.15,0.00027671,2]
[327470443,1716096661638,-507.61725035,0.00027671,2]
[327470444,1716096661647,-500.0,0.00027671,2]
[327470445,1716096661656,-500.0,0.00027671,2]
[327470446,1716096661665,-500.0,0.00027671,2]
[327470447,1716096661675,-295.90420895,0.00027671,2]
[327470448,1716096661684,-500.0,0.00027671,2]
[327470449,1716096661693,-1004.7,0.00027671,2]
[327470450,1716096661702,-500.0,0.00027671,2]
[327470451,1716096661712,-500.0,0.00027671,2]
[327470452,1716096661720,-2362.62,0.00027671,2]
[327470453,1716096661729,-500.0,0.00027671,2]
[327470454,1716096661738,-670.97,0.00027671,2]
[327470455,1716096661747,-500.0,0.00027671,2]
[327470456,1716096661757,-500.0,0.00027671,2]
[327470457,1716096661767,-500.0,0.00027671,2]
[327470458,1716096661776,-500.0,0.00027671,2]
[327470459,1716096661785,-500.0,0.00027671,2]
[327470460,1716096661795,-1194.79,0.00027671,2]
[327470461,1716096661804,-500.0,0.00027671,2]
[327470462,1716096661813,-500.0,0.00027671,2]
[327470463,1716096661822,-429.27709361,0.00027671,2]
[327470464,1716096661831,-3941.53,0.00027671,2]
[327470465,1716096661840,-1679.99,0.00027671,2]
[327470466,1716096661850,-721.58,0.00027671,2]
[327470467,1716096661859,-163.32936046,0.00027671,2]
[327470468,1716096661868,-583.94568813,0.00027671,2]
[327470469,1716096661877,-500.0,0.00027671,2]
[327470470,1716096661887,-500.0,0.00027671,2]
[327470471,1716096661896,-500.0,0.00027671,2]
[327470472,1716096661905,-500.0,0.00027671,2]
[327470473,1716096661914,-500.0,0.00027671,2]
[327470474,1716096661924,-1249.9,0.00027671,2]
[327470475,1716096661934,-814.44,0.00027671,2]
[327470476,1716096661943,-500.0,0.00027671,2]
[327470477,1716096661953,-636.23,0.00027671,2]
[327470478,1716096661964,-597.17667991,0.00027671,2]
[327470479,1716096661976,-1499.69,0.00027671,2]
[327470480,1716096661985,-1155.15,0.00027671,2]
[327470481,1716096661996,-683.18,0.00027671,2]
[327470482,1716096662007,-500.0,0.00027671,2]
[327470483,1716096662016,-683.17,0.00027671,2]
[327470484,1716096662025,-1096.96,0.00027671,2]
[327470485,1716096662034,-2978.31,0.00027671,2]
[327470486,1716096662044,-500.0,0.00027671,2]
[327470487,1716096662053,-500.0,0.00027671,2]
[327470488,1716096662062,-803.21,0.00027671,2]
[327470489,1716096662071,-500.0,0.00027671,2]
[327470490,1716096662081,-500.0,0.00027671,2]
[327470491,1716096662090,-915.09,0.00027671,2]
[327470492,1716096662099,-1646.34,0.00027671,2]
[327470493,1716096662109,-452.34191229,0.00027671,2]
[327470494,1716096662118,-4650.71,0.00027671,2]
[327470495,1716096662127,-500.0,0.00027671,2]
[327470496,1716096662136,-580.76,0.00027671,2]
[327470497,1716096662145,-500.0,0.00027671,2]
[327470498,1716096662154,-1273.94,0.00027671,2]
[327470499,1716096662164,-1269.82,0.00027671,2]
[327470500,1716096662173,-204.84922282,0.00027671,2]
[327470501,1716096662182,-500.0,0.00027671,2]
[327470502,1716096662191,-1715.41,0.00027671,2]
[327470503,1716096662200,-500.0,0.00027671,2]
[327470504,1716096662210,-191.02757253,0.00027671,2]
[327470505,1716096662220,-500.0,0.00027671,2]
[327470506,1716096662230,-390.3546859,0.00027671,2]
[327470507,1716096662239,-500.0,0.00027671,2]
[327470508,1716096662254,-1545.04,0.00027671,2]
[327470509,1716096662263,-523.97906074,0.00027671,2]
[327470510,1716096662272,-500.0,0.00027671,2]
[327470511,1716096662282,-3492.97,0.00027671,2]
[327470512,1716096662294,-744.54,0.00027671,2]
[327470513,1716096662303,-455.66702326,0.00027671,2]
[327470514,1716096662313,-500.0,0.00027671,2]
[327470515,1716096662322,-689.34,0.00027671,2]
[327470516,1716096662333,-596.27,0.00027671,2]
[327470517,1716096662343,-500.0,0.00027671,2]
[327470518,1716096662353,-1131.87,0.00027671,2]
[327470519,1716096662362,-500.0,0.00027671,2]
[327470520,1716096662372,-500.0,0.00027671,2]
[327470521,1716096662382,-610.37413759,0.00027671,2]
[327470522,1716096662391,-645.7369841,0.00027671,2]
[327470523,1716096662400,-500.0,0.00027671,2]
[327470524,1716096662409,-500.0,0.00027671,2]
[327470525,1716096662419,-599.51,0.00027671,2]
[327470526,1716096662428,-500.0,0.00027671,2]
[327470527,1716096662437,-221.02745893,0.00027671,2]
[327470528,1716096662447,-500.0,0.00027671,2]
[327470529,1716096662456,-10906.7,0.00027671,2]
[327470530,1716096662466,-500.0,0.00027671,2]
[327470531,1716096662475,-647.59512167,0.00027671,2]
[327470532,1716096662485,-500.0,0.00027671,2]
[327470533,1716096662495,-158.93257209,0.00027671,2]
[327470534,1716096662504,-823.38,0.00027671,2]
[327470535,1716096662514,-524.44,0.00027671,2]
[327470536,1716096662523,-14927.02,0.00027671,2]
[327470537,1716096662532,-278.52523959,0.00027671,2]
[327470538,1716096662542,-500.0,0.00027671,2]
[327470539,1716096662551,-230.47608047,0.00027671,2]
[327470540,1716096662561,-500.0,0.00027671,2]
[327470541,1716096662571,-500.0,0.00027671,2]
[327470542,1716096662580,-500.0,0.00027671,2]
[327470543,1716096662590,-500.0,0.00027671,2]
[327470544,1716096662599,-2690.46,0.00027671,2]
[327470545,1716096662608,-500.0,0.00027671,2]
[327470546,1716096662618,-173.051911,0.00027748,10]
[327470547,1716096662627,-349.0,0.00027753,2]
[327470548,1716096662636,-150.0,0.00027753,2]
[327470549,1716096662645,-500.0,0.00027767,2]
[327470550,1716096662655,-500.0,0.00027767,2]
[327470551,1716096662665,-500.0,0.00027767,2]
[327470552,1716096662675,-500.0,0.00027767,2]
[327470553,1716096662684,-303.87,0.00027767,2]
[327470554,1716096662694,-500.0,0.00027767,2]
[327470555,1716096662703,-435.55,0.00027767,2]
[327470556,1716096662713,-500.0,0.00027767,2]
[327470557,1716096662723,-500.0,0.00027767,2]
[327470558,1716096662732,-500.0,0.00027767,2]
[327470559,1716096662742,-500.0,0.00027767,2]
[327470560,1716096662752,-500.0,0.00027767,2]
[327470561,1716096662761,-500.0,0.00027767,2]
[327470562,1716096662770,-500.0,0.00027767,2]
[327470563,1716096662779,-500.0,0.00027767,2]
[327470564,1716096662788,-500.0,0.00027767,2]
[327470565,1716096662797,-500.0,0.00027767,2]
[327470566,1716096662806,-500.0,0.00027767,2]
[327470567,1716096662815,-500.0,0.00027767,2]
[327470568,1716096662825,-500.0,0.00027767,2]
[327470569,1716096662834,-500.0,0.00027767,2]
[327470570,1716096662843,-438.94,0.00027767,2]
[327470571,1716096662853,-500.0,0.00027767,2]
[327470572,1716096662862,-500.0,0.00027767,2]
[327470573,1716096662872,-500.0,0.00027767,2]
[327470574,1716096662881,-500.0,0.00027767,2]
[327470575,1716096662890,-500.0,0.00027767,2]
[327470576,1716096662900,-500.0,0.00027767,2]
[327470577,1716096662910,-500.0,0.00027767,2]
[327470578,1716096662919,-500.0,0.00027767,2]
[327470579,1716096662928,-500.0,0.00027767,2]
[327470580,1716096662938,-500.0,0.00027767,2]
[327470581,1716096662947,-500.0,0.00027767,2]
[327470582,1716096662956,-500.0,0.00027767,2]
[327470583,1716096662966,-500.0,0.00027767,2]
[327470584,1716096662975,-500.0,0.00027767,2]
[327470585,1716096662984,-500.0,0.00027767,2]
[327470586,1716096662993,-500.0,0.00027767,2]
[327470587,1716096663002,-500.0,0.00027767,2]
[327470588,1716096663012,-500.0,0.00027767,2]
[327470589,1716096663024,-500.0,0.00027767,2]
[327470590,1716096663034,-500.0,0.00027767,2]
[327470591,1716096663043,-500.0,0.00027767,2]
[327470592,1716096663052,-500.0,0.00027767,2]
[327470593,1716096663062,-500.0,0.00027767,2]
[327470594,1716096663071,-323.56,0.00027767,2]
[327470595,1716096663080,-500.0,0.00027767,2]
[327470596,1716096663090,-322.69345036,0.0002783,2]
[327470597,1716096663101,-181.87914729,0.0002784,2]
[327470598,1716096663110,-5421.67267858,0.0002784,2]
[327470599,1716096663119,-378.78953354,0.0002784,2]
[327470600,1716096663128,-1165.76321267,0.00027841,4]
[327470601,1716096663138,-463.23081091,0.00027841,30]
[327470602,1716096663148,-150.0,0.00027844,2]
[327470603,1716096663157,-150.0,0.00027889,7]
[327470604,1716096663167,-404.36735684,0.000279,2]
[327470605,1716096663176,-2744.26711947,0.000279,2]
[327470606,1716096663185,-72641.6389445,0.00027902,2]
[327470607,1716096663195,-694.5828771,0.00027902,2]
[327470608,1716096663205,-16584.242492,0.00027902,2]
[327470609,1716096663215,-18209.4053996,0.00027902,2]
[327470610,1716096663225,-3342.7877597,0.00027902,2]
[327470611,1716096663498,-342.46667533,0.00027902,2]
[327470612,1716096663510,-303.00000001,0.00027902,2]
[327470613,1716096663807,-593.0,0.00017,5]
[327470614,1716096663818,-8434.16923068,0.00019617,2]
[327470615,1716096663827,-574.31221195,0.00020256,2]
[327470616,1716096663837,-640.947996,0.00024898,7]
[327470617,1716096663847,-640.947996,0.0002499,7]
[327470618,1716096663856,-403.67091021,0.00027297,7]
[327470619,1716096663899,-268.2463,0.00016762,2]
[327470620,1716096664922,167.74,0.00024917,120]
[327470624,1716096835821,300.0,9e-05,2]
[327470626,1716096907777,-1632569.239625,0.00013,2]
[327470636,1716097616355,-858.93558888,0.000129,2]
[327470637,1716097616378,-106810.04760345,0.00013,2]
[327470638,1716097616400,-207506.4942512,0.00013,2]
[327470639,1716097616421,-3737.809,0.00015798,2]
[327470640,1716097616442,-3635.703,0.00015798,2]
[327470641,1716097616464,-3654.629,0.00015798,2]
[327470642,1716097616486,-150.0,0.00017205,2]
[327470643,1716097616507,-17038.38155647,0.00017246,2]
[327470644,1716097698947,-661.04402071,0.00015697,2]
[327470645,1716097698971,-169.22236429,0.00015698,2]
[327470646,1716097698993,-2588.58351504,0.00017246,2]
[327470647,1716097699016,-10934.65564137,0.00017259,2]
[327470648,1716097699039,-169.22236422,0.00017441,2]
[327470649,1716097699060,-155.0,0.00018,2]
[327470664,1716097832463,-1459.71,0.00018858,2]
[327470665,1716097832473,-93.1214616,0.00019999,2]
[327470666,1716097832615,-97.2328378,0.00019999,2]
[327470667,1716097832625,-1107.1754881,0.0002,2]
[327470668,1716097832663,-1457.62574935,0.0002,2]
[327470669,1716097832675,-7225.19876255,0.0002,2]
[327470670,1716097832684,-7500.0,0.00020195,2]
[327470671,1716097832693,-200.0,0.00020287,2]
[327470672,1716097832703,-2160.0,0.00020295,2]
[327470673,1716097832712,-454.0,0.00020295,2]
[327470674,1716097832722,-1262.0,0.00020295,2]
[327470675,1716097832731,-544.0,0.00020295,2]
[327470676,1716097832740,-1226.0,0.00020295,2]
[327470677,1716097832749,-1642.0,0.00020295,2]
[327470678,1716097832758,-668.404,0.00020295,2]
[327470679,1716097832768,-612.0,0.00020295,2]
[327470680,1716097832777,-1977.0,0.00020295,2]
[327470681,1716097832786,-1977.0,0.00020295,2]
[327470682,1716097832795,-215.0,0.00020295,2]
[327470683,1716097832804,-215.223,0.00020295,2]
[327470684,1716097832813,-289.0,0.00020295,2]
[327470686,1716097832824,-5915.0,0.00020295,2]
[327470688,1716097832833,-5755.0,0.00020295,2]
[327470689,1716097832846,-1464.0,0.00020295,2]
[327470690,1716097832856,-37868.0,0.00020295,2]
[327470691,1716097832865,-250.0,0.00021028,2]
[327470692,1716097832874,-172.1,0.00021061,15]
[327470693,1716097832883,-150.0,0.00021101,2]
[327470694,1716097832893,-1459.71,0.00021122,2]
[327470695,1716097832902,-2000.0,0.00022154,3]
[327470696,1716097832912,-3077.6,0.00022436,2]
[327470697,1716097832922,-270.82,0.00022693,2]
[327470698,1716097832931,-171.13,0.00023132,2]
[327470699,1716097832941,-151.86630351,0.00023258,2]
[327470700,1716097832950,-179.511,0.00023295,2]
[327470701,1716097832959,-1262.0,0.00023295,2]
[327470702,1716097832968,-544.0,0.00023295,2]
[327470703,1716097832977,-1226.0,0.00023295,2]
[327470704,1716097832987,-1642.0,0.00023295,2]
[327470705,1716097832995,-610.226,0.00023295,2]
[327470706,1716097833005,-1977.0,0.00023295,2]
[327470707,1716097833015,-1977.0,0.00023295,2]
[327470708,1716097833024,-289.0,0.00023295,2]
[327470709,1716097833034,-5915.0,0.00023295,2]
[327470710,1716097833043,-1115.349,0.00023295,2]
[327470711,1716097833052,-1406.002,0.00023295,2]
[327470712,1716097833062,-37868.0,0.00023295,2]
[327470713,1716097833072,-1459.71,0.00023386,2]
[327470714,1716097833080,-191.11,0.00024299,2]
[327470715,1716097833090,-170.54,0.00024331,2]
[327470716,1716097833100,-8213.86457712,0.00024898,2]
[327470717,1716097833110,-8213.86457708,0.00024898,2]
[327470718,1716097833119,-46771.59052788,0.0002499,7]
[327470719,1716097833128,-5000.0,0.00025,7]
[327470720,1716097833137,-8213.86457708,0.00025487,2]
[327470721,1716097833146,-270.82,0.00025529,2]
[327470722,1716097833156,-1459.71,0.0002565,2]
[327470723,1716097833164,-600.0,0.00025752,2]
[327470724,1716097833173,-1000.0,0.00026,5]
[327470725,1716097833182,-157.051914,0.00026148,2]
[327470726,1716097833192,-157.051914,0.00026198,4]
[327470727,1716097833201,-173.051914,0.00026248,4]
[327470728,1716097833210,-1262.0,0.00026295,2]
[327470729,1716097833219,-544.0,0.00026295,2]
[327470730,1716097833228,-1226.0,0.00026295,2]
[327470731,1716097833237,-1642.0,0.00026295,2]
[327470732,1716097833246,-1672.267,0.00026295,2]
[327470733,1716097833255,-1672.267,0.00026295,2]
[327470734,1716097833265,-282.467,0.00026295,2]
[327470735,1716097833274,-5915.0,0.00026295,2]
[327470736,1716097833283,-13521.381,0.00026295,2]
[327470737,1716097833292,-157.051914,0.00026298,4]
[327470738,1716097833301,-600.0,0.000263,2]
[327470739,1716097833310,-199.051914,0.00026348,2]
[327470740,1716097833320,-8213.86457708,0.00026357,2]
[327470741,1716097833330,-157.051914,0.00026398,4]
[327470742,1716097833339,-173.051914,0.00026448,4]
[327470743,1716097833349,-157.051914,0.00026498,4]
[327470744,1716097833358,-12651.55997179,0.000265,2]
[327470745,1716097833367,-199.051914,0.00026548,2]
[327470746,1716097833376,-157.051914,0.00026598,4]
[327470747,1716097833386,-173.051914,0.00026648,4]
[327470748,1716097833395,-157.051914,0.00026698,4]
[327470749,1716097833404,-199.051914,0.00026748,2]
[327470750,1716097833413,-157.051914,0.00026798,4]
[327470751,1716097833423,-600.0,0.00026848,2]
[327470752,1716097833432,-173.051914,0.00026848,4]
[327470753,1716097833441,-157.051914,0.00026898,4]
[327470754,1716097833450,-687.63063,0.000269,2]
[327470755,1716097833459,-199.051914,0.00026948,2]
[327470756,1716097833468,-869.42,0.00026986,2]
[327470757,1716097833477,-869.42,0.00026986,2]
[327470758,1716097833487,-197.66,0.00026986,2]
[327470759,1716097833496,-157.051914,0.00026998,4]
[327470760,1716097833505,-1000.0,0.00027,6]
[327470761,1716097833514,-191.11,0.00027039,2]
[327470762,1716097833524,-173.051914,0.00027048,4]
[327470763,1716097833534,-157.051914,0.00027098,8]
[327470764,1716097833544,-351.72,0.00027123,2]
[327470765,1716097833553,-433.94,0.00027123,2]
[327470766,1716097833563,-150.0,0.00027123,2]
[327470767,1716097833573,-326.03,0.00027123,2]
[327470768,1716097833583,-150.0,0.00027123,2]
[327470769,1716097833593,-150.0,0.00027123,2]
[327470770,1716097833602,-420.52,0.00027123,2]
[327470771,1716097833612,-351.72,0.00027123,2]
[327470772,1716097833621,-150.0,0.00027123,2]
[327470773,1716097833630,-523.91,0.00027123,2]
[327470774,1716097833639,-150.0,0.00027123,2]
[327470775,1716097833649,-523.91,0.00027123,2]
[327470776,1716097833658,-150.0,0.00027123,2]
[327470777,1716097833667,-351.72,0.00027123,2]
[327470778,1716097833676,-343.41,0.00027123,2]
[327470779,1716097833685,-351.72,0.00027123,2]
[327470780,1716097833695,-150.0,0.00027123,2]
[327470781,1716097833704,-350.76,0.00027123,2]
[327470782,1716097833713,-199.051914,0.00027148,4]
[327470783,1716097833722,-157.051914,0.00027198,8]
[327470784,1716097833731,-150.0,0.0002722,7]
[327470785,1716097833740,-8213.86457708,0.00027228,2]
[327470786,1716097833750,-173.051914,0.00027248,4]
[327470787,1716097833759,-421.16228881,0.00027297,2]
[327470788,1716097833768,-169.22236422,0.00027297,2]
[327470789,1716097833777,-157.051914,0.00027298,8]
[327470790,1716097833786,-199.051914,0.00027348,4]
[327470791,1716097833795,-200.28515741,0.00027394,2]
[327470792,1716097833804,-600.0,0.00027396,2]
[327470793,1716097833813,-1412.26679383,0.00027396,2]
[327470794,1716097833824,-511.65993336,0.00027397,2]
[327470795,1716097833833,-500.0,0.00027397,2]
[327470796,1716097833846,-500.0,0.00027397,2]
[327470797,1716097833855,-500.0,0.00027397,2]
[327470798,1716097833864,-903.45,0.00027397,2]
[327470799,1716097833874,-500.0,0.00027397,2]
[327470800,1716097833884,-565.711096,0.00027397,2]
[327470801,1716097833893,-167.84339677,0.00027397,2]
[327470802,1716097833902,-535.67240163,0.00027397,2]
[327470803,1716097833912,-311.71652529,0.00027397,2]
[327470804,1716097833924,-500.0,0.00027397,2]
[327470805,1716097833933,-500.0,0.00027397,2]
[327470806,1716097833942,-500.0,0.00027397,2]
[327470807,1716097833951,-500.0,0.00027397,2]
[327470808,1716097833960,-500.0,0.00027397,2]
[327470809,1716097833969,-500.0,0.00027397,2]
[327470810,1716097833978,-500.0,0.00027397,2]
[327470811,1716097833987,-500.0,0.00027397,2]
[327470812,1716097833996,-500.0,0.00027397,2]
[327470813,1716097834005,-500.0,0.00027397,2]
[327470814,1716097834014,-318.40039747,0.00027397,2]
[327470815,1716097834023,-500.0,0.00027397,2]
[327470816,1716097834033,-500.0,0.00027397,2]
[327470817,1716097834044,-330.89293008,0.00027397,2]
[327470818,1716097834054,-482.32729354,0.00027397,2]
[327470819,1716097834063,-500.0,0.00027397,2]
[327470820,1716097834074,-500.0,0.00027397,2]
[327470821,1716097834083,-452.32043183,0.00027397,2]
[327470822,1716097834093,-196.37175887,0.00027397,2]
[327470823,1716097834102,-161.13754253,0.00027397,2]
[327470824,1716097834112,-500.0,0.00027397,2]
[327470825,1716097834121,-500.0,0.00027397,2]
[327470826,1716097834130,-281.27559171,0.00027397,2]
[327470827,1716097834139,-500.0,0.00027397,2]
[327470828,1716097834149,-545.95408695,0.00027397,2]
[327470829,1716097834158,-530.58,0.00027397,2]